bitfinex/quotes_ETHUSD_20241103
["timestamp","ask_amount","ask_price","bid_price","bid_amount"]
[1730651346933,1.27607198,2456.2,2455.9,5.34102]
[1730651346934,0.85172747,2456.1,2455.9,5.34102]
[1730651347120,0.85172747,2456.0,2455.9,5.34102]
[1730651347320,0.85172747,2456.0,2455.9,4.57182]
[1730651347557,0.85172747,2456.0,2455.9,0.5]
[1730651348979,0.85172747,2456.1,2455.9,4.57182]
[1730651349179,0.85172747,2456.1,2456.0,4.07166]
[1730651349771,0.85172747,2456.1,2455.9,0.5]
[1730651349936,0.85320536,2456.1,2455.9,4.57169]
[1730651350536,0.85320536,2456.0,2455.9,4.57169]
[1730651350755,0.85320536,2456.1,2455.9,5.07169]
[1730651350964,0.85320536,2456.0,2455.9,5.07169]
[1730651351735,0.85320536,2456.1,2455.9,5.07169]
[1730651351938,0.85320536,2456.0,2455.9,5.07169]
[1730651352238,0.85320536,2456.0,2455.9,1.0]
[1730651352452,5.34757198,2456.1,2455.9,1.0]
[1730651354951,5.34757198,2456.1,2455.9,1.5]
[1730651355352,0.85358308,2456.0,2455.9,1.5]
[1730651356771,1.62218308,2456.0,2455.9,1.5]
[1730651357179,5.69384308,2456.0,2455.9,1.5]
[1730651357548,1.62218308,2456.0,2455.9,1.5]
[1730651359009,1.62218308,2456.0,2455.9,2.0]
[1730651359313,5.69384308,2456.0,2455.9,2.0]
[1730651360420,6.96812752,2456.0,2455.9,2.0]
[1730651361284,6.11454444,2456.0,2455.9,2.0]
[1730651364383,9.12454444,2456.0,2455.9,2.0]
[1730651364985,9.11454444,2456.0,2455.9,2.0]
[1730651365327,9.12454444,2456.0,2455.9,2.0]
[1730651368625,9.67454444,2456.0,2455.9,2.0]
[1730651371508,9.67454444,2456.0,2454.7,0.7502]
[1730651371509,4.07352,2454.9,2454.7,0.7502]
[1730651371737,8.14708,2454.9,2454.7,0.7502]
[1730651371912,4.07352,2454.9,2454.7,0.7502]
[1730651372838,4.07328,2455.1,2454.7,0.7502]
[1730651373109,8.14655,2455.1,2454.7,0.7502]
[1730651373617,4.07327,2455.1,2454.7,0.7502]
[1730651373836,4.073,2455.2,2454.7,5.31236106]
[1730651374025,4.073,2455.2,2454.8,4.07363]
[1730651374224,4.073,2455.2,2454.7,5.31249106]
[1730651374544,4.07325,2455.1,2454.7,1.23868106]
[1730651374744,4.07325,2455.1,2454.7,0.7502]
[1730651376460,4.07334,2455.0,2454.7,0.7502]
[1730651376627,4.92654028,2455.0,2454.7,0.7502]
[1730651376831,4.07376,2454.8,2454.6,0.0606506]
[1730651377046,1.61930028,2455.0,2454.6,0.0606506]
[1730651377243,4.07375,2454.8,2454.6,0.0606506]
[1730651377649,4.07348,2454.9,2454.6,0.0606506]
[1730651377856,4.07365,2454.8,2454.6,0.0606506]
[1730651378170,4.07381,2454.7,2454.6,0.0606506]
[1730651379076,8.14712,2454.9,2454.6,0.0606506]
[1730651379277,4.07356,2454.9,2454.6,0.0606506]
[1730651380176,8.14717,2454.9,2454.6,0.0606506]
[1730651380549,4.07356,2454.9,2454.6,0.0606506]
[1730651381677,4.07366,2454.8,2454.5,0.7015506]
[1730651381877,4.07366,2454.8,2454.5,1.58657966]
[1730651382446,4.07342,2455.0,2454.5,1.58657966]
[1730651382791,1.22825638,2455.1,2454.5,0.7015506]
[1730651382792,4.07365,2454.8,2454.5,0.7015506]
[1730651382986,4.07349,2454.9,2454.5,0.7015506]
[1730651383186,4.07368,2454.8,2454.5,0.7015506]
[1730651383389,4.0739,2454.7,2454.5,0.7015506]
[1730651385759,4.07366,2454.8,2454.5,0.7015506]
[1730651387588,4.07384,2454.7,2454.5,0.7015506]
[1730651387760,4.07366,2454.8,2454.5,0.7015506]
[1730651388753,8.14741,2454.8,2454.5,0.7015506]
[1730651388952,4.07366,2454.8,2454.5,0.7015506]
[1730651389194,4.07407,2454.6,2454.3,0.8138]
[1730651389694,8.14775,2454.7,2454.3,0.8138]
[1730651389990,4.07399,2454.6,2454.3,0.8138]
[1730651390860,4.07372,2454.8,2454.3,0.87033035]
[1730651391173,4.07372,2454.8,2454.4,4.8881]
[1730651391380,4.07372,2454.8,2454.4,0.8138]
[1730651392253,4.07384,2454.7,2454.4,0.8138]
[1730651392474,4.07384,2454.7,2454.4,1.7889551]
[1730651393082,4.0741,2454.6,2454.4,0.8138]
[1730651393295,4.07384,2454.7,2454.4,0.8138]
[1730651394005,4.07408,2454.6,2454.4,0.8138]
[1730651394299,4.07366,2454.8,2454.4,0.8138]
[1730651394675,4.07356,2454.9,2454.4,0.8138]
[1730651397501,4.07365,2454.8,2454.4,0.8138]
[1730651397697,4.07365,2454.8,2454.4,8.96242]
[1730651397905,4.07365,2454.8,2454.4,4.88811]
[1730651398396,4.92685028,2454.8,2454.4,4.88811]
[1730651398757,4.92685028,2454.8,2454.4,4.88804]
[1730651398962,0.85320028,2454.8,2454.4,5.784264]
[1730651399194,0.85320028,2454.8,2454.5,4.07413]
[1730651399373,1.27980043,2454.7,2454.5,4.07413]
[1730651399779,0.85546172,2454.6,2454.4,5.784354]
[1730651399994,0.85546172,2454.5,2454.4,5.784354]
[1730651400195,0.85546172,2454.5,2454.4,1.710054]
[1730651400387,0.85546172,2454.5,2454.4,5.784364]
[1730651400695,0.85546172,2454.6,2454.4,1.710054]
[1730651400899,0.85546172,2454.6,2454.4,4.8881]
[1730651401069,0.85546172,2454.5,2454.4,4.8881]
[1730651401677,0.85546172,2454.5,2454.4,0.8138]
[1730651401988,4.07481,2454.1,2454.0,0.63759008]
[1730651402331,4.07517,2453.9,2453.5,0.7522]
[1730651402479,4.93032806,2453.8,2453.5,0.7522]
[1730651402840,0.85500806,2453.8,2453.5,0.7522]
[1730651403275,0.85500806,2453.9,2453.7,4.07547]
[1730651403476,0.85500806,2454.0,2453.8,0.7522]
[1730651404331,0.85500806,2454.1,2453.8,4.8275]
[1730651404612,0.85500806,2454.1,2453.8,5.72595621]
[1730651404813,0.85500806,2454.2,2453.9,4.07514]
[1730651405020,0.85500806,2454.2,2453.8,5.72595621]
[1730651405021,0.85500806,2454.2,2454.1,0.7522]
[1730651405328,1.2825121,2454.4,2454.1,4.82692]
[1730651405329,0.85500806,2454.3,2454.1,4.82692]
[1730651405479,0.85500806,2454.4,2454.1,4.82692]
[1730651405682,4.07464,2454.2,2453.8,0.7522]
[1730651405923,4.07481,2454.1,2453.8,0.7522]
[1730651406220,0.85500806,2454.1,2453.8,0.7522]
[1730651406430,4.92964806,2454.2,2453.8,0.7522]
[1730651406584,4.07482,2454.1,2453.8,0.7522]
[1730651407111,4.92966806,2454.2,2453.8,0.7522]
[1730651407284,0.85500806,2454.2,2453.9,4.07506]
[1730651407505,4.92955806,2454.3,2454.0,0.7522]
[1730651409243,4.07467,2454.2,2453.8,4.07514]
[1730651409416,4.92955806,2454.3,2453.6,0.7522]
[1730651409417,4.07485,2454.1,2453.6,0.7522]
[1730651409614,4.07527,2453.9,2453.4,0.8128506]
[1730651409805,0.407485,2454.0,2453.4,0.8128506]
[1730651409806,1.26249306,2454.0,2453.5,0.08151476]
[1730651409999,0.85500806,2454.0,2453.6,4.07552]
[1730651410241,4.93000806,2454.0,2453.5,4.07581]
[1730651410446,4.07515,2453.9,2453.4,4.8888206]
[1730651411152,4.07515,2453.9,2453.5,4.07578]
[1730651411462,4.07531,2453.8,2453.4,4.8888106]
[1730651411635,4.07531,2453.8,2453.4,0.8128506]
[1730651412020,4.0755,2453.7,2453.4,0.8128506]
[1730651412901,4.0755,2453.7,2453.4,0.0606506]
[1730651413450,4.07547,2453.7,2453.4,0.0606506]
[1730651414145,0.97854981,2453.8,2453.4,0.0606506]
[1730651414146,4.07581,2453.5,2453.4,0.0606506]
[1730651414328,5.263591,2453.5,2453.4,0.0606506]
[1730651414916,0.407581,2453.5,2453.4,0.0606506]
[1730651415120,4.07567,2453.6,2453.4,0.0606506]
[1730651415339,0.7802,2453.7,2453.4,0.0606506]
[1730651415340,4.85572,2453.7,2453.4,0.0606506]
[1730651416261,4.93009806,2454.0,2453.6,4.07562]
[1730651416424,0.85500806,2454.1,2453.6,4.07564]
[1730651416609,5.70995806,2454.2,2453.6,4.07564]
[1730651416959,4.07503,2454.0,2453.6,4.07564]
[1730651417255,4.92984806,2454.1,2453.6,8.15119]
[1730651417406,4.92984806,2454.1,2453.6,8.15111]
[1730651417614,6.15359879,2454.1,2453.6,4.07555]
[1730651417814,6.15359879,2454.1,2453.5,0.7522]
[1730651417815,4.07519,2453.9,2453.5,0.7522]
[1730651418013,4.07499,2454.0,2453.5,0.7522]
[1730651418014,8.15007,2454.0,2453.5,4.82799]
[1730651418325,8.15007,2454.0,2453.4,0.0606506]
[1730651418326,4.07548,2453.7,2453.4,0.0606506]
[1730651418970,0.85500806,2454.0,2453.4,0.0606506]
[1730651419151,4.07581,2453.5,2453.4,0.0606506]
[1730651422088,7.89991,2453.5,2453.4,0.0606506]
[1730651422253,9.1824221,2453.5,2453.4,0.0606506]
[1730651422599,4.89991,2453.5,2453.4,0.0606506]
[1730651422800,6.94870601,2453.5,2453.4,0.0606506]
[1730651422994,6.09685233,2453.5,2453.4,0.0606506]
[1730651423282,7.37936443,2453.5,2453.4,0.0606506]
[1730651423713,7.81805355,2453.5,2453.4,0.0606506]
[1730651424088,11.37805355,2453.5,2453.4,0.0606506]
[1730651424408,11.36925529,2453.5,2453.4,0.0606506]
[1730651424777,9.66685233,2453.5,2453.4,0.0606506]
[1730651424978,11.36923234,2453.5,2453.4,0.0606506]
[1730651426103,0.01,2453.3,2452.1,4.1386406]
[1730651426428,4.07722,2452.7,2452.2,0.7788]
[1730651426727,4.07722,2452.7,2452.2,4.85676]
[1730651426908,4.07722,2452.7,2452.2,0.7788]
[1730651427119,4.07739,2452.6,2452.1,4.1387006]
[1730651427297,4.07739,2452.6,2452.1,0.0606506]
[1730651427298,0.8241,2452.5,2452.1,0.0606506]
[1730651428384,4.90173,2452.5,2452.1,0.0606506]
[1730651428589,8.97935,2452.5,2452.1,0.0606506]
[1730651428911,4.90172,2452.5,2452.1,0.0606506]
[1730651429111,4.90166,2452.5,2452.1,0.0606506]
[1730651429319,4.07763,2452.4,2452.1,0.0606506]
[1730651431126,5.391776,2452.5,2452.1,0.0606506]
[1730651431127,4.07788,2452.3,2452.1,0.0606506]
[1730651431684,4.07797,2452.2,2452.1,0.0606506]
[1730651435471,4.07788,2452.3,2452.1,0.0606506]
[1730651435976,4.07797,2452.2,2452.1,0.0606506]
[1730651436473,8.15583,2452.3,2452.1,0.0606506]
[1730651436793,4.07797,2452.2,2452.1,0.0606506]
[1730651437074,7.89877,2452.2,2452.1,0.0606506]
[1730651438979,7.89877,2452.2,2451.2,4.07946]
[1730651439177,4.90006,2451.5,2451.0,1.5]
[1730651439348,4.07855,2451.9,2451.4,4.07924]
[1730651439953,4.07855,2451.9,2451.4,8.15846]
[1730651440262,4.07855,2451.9,2451.5,0.8248]
[1730651440679,8.15692,2451.9,2451.3,0.8248]
[1730651440845,0.897772,2451.8,2451.3,0.8248]
[1730651441039,0.8208,2452.0,2451.3,0.8248]
[1730651441040,4.07914,2451.5,2451.3,0.8248]
[1730651441470,8.1584,2451.5,2451.3,0.8248]
[1730651441675,4.07942,2451.4,2451.1,0.8248]
[1730651442083,4.07898,2451.6,2451.1,4.90446]
[1730651442761,4.0788,2451.7,2451.2,4.07955]
[1730651442970,4.0785,2451.9,2451.3,4.07944]
[1730651443211,4.07888,2451.7,2451.2,1.04842]
[1730651443359,4.07888,2451.7,2451.2,5.12792]
[1730651443562,8.15741,2451.8,2451.3,4.07945]
[1730651443862,4.07883,2451.7,2451.3,4.07945]
[1730651444266,4.07864,2451.8,2451.2,1.04842]
[1730651444458,8.15743,2451.8,2451.3,4.07946]
[1730651445114,4.89916,2452.0,2451.4,0.8248]
[1730651445315,4.07851,2451.9,2451.4,4.90401]
[1730651445472,4.07836,2452.0,2451.5,4.0791]
[1730651445968,4.07808,2452.2,2451.5,4.07902]
[1730651446173,4.07829,2452.1,2451.5,8.15805]
[1730651446404,4.07834,2452.0,2451.5,4.07902]
[1730651446609,4.07834,2452.0,2451.5,4.079]
[1730651446907,4.07809,2452.2,2451.6,4.07895]
[1730651447076,4.07814,2452.1,2451.7,0.8248]
[1730651447773,4.07848,2451.9,2451.7,0.8248]
[1730651447959,4.07825,2452.1,2451.7,0.8248]
[1730651448160,4.07849,2451.9,2451.7,0.8248]
[1730651448796,4.0783,2452.0,2451.7,0.8248]
[1730651449067,4.07847,2451.9,2451.7,0.8248]
[1730651450414,0.58460596,2452.1,2451.7,0.8248]
[1730651450744,4.07839,2452.0,2451.7,0.8248]
[1730651450951,4.07814,2452.1,2451.7,0.8248]
[1730651451310,4.07855,2451.9,2451.4,0.799]
[1730651451549,4.07871,2451.8,2451.4,0.799]
[1730651451765,4.07855,2451.9,2451.4,0.799]
[1730651452046,4.07864,2451.8,2451.4,0.799]
[1730651453114,4.079,2451.6,2451.4,0.799]
[1730651453313,0.815719,2451.8,2451.1,4.07969]
[1730651453314,4.07922,2451.5,2451.1,0.799]
[1730651453750,4.07938,2451.4,2451.1,0.799]
[1730651454570,4.85692,2451.4,2451.0,1.5]
[1730651454714,4.0798,2451.1,2451.0,1.5]
[1730651454912,4.48778,2451.1,2451.0,1.5]
[1730651456527,5.26538,2451.1,2451.0,1.5]
[1730651456739,8.27538,2451.1,2451.0,1.5]
[1730651457818,8.26538,2451.1,2451.0,1.5]
[1730651461071,8.27538,2451.1,2451.0,1.5]
[1730651462373,8.27538,2451.1,2450.9,0.0606506]
[1730651462374,12.37697404,2451.0,2450.9,0.0606506]
[1730651462870,4.08189,2449.9,2449.7,0.0606506]
[1730651464478,4.08196,2449.8,2449.7,0.0606506]
[1730651464774,4.08099,2450.4,2449.9,4.08177]
[1730651464933,4.08099,2450.4,2449.8,4.88088]
[1730651464934,4.08124,2450.3,2449.8,4.88088]
[1730651465277,4.08124,2450.3,2449.8,5.78324206]
[1730651465661,4.08132,2450.2,2449.8,1.70136206]
[1730651465863,4.08124,2450.3,2449.8,0.799]
[1730651466072,8.16247,2450.3,2449.8,4.88094]
[1730651466230,4.08196,2449.8,2449.7,0.0606506]
[1730651469450,7.85956,2449.8,2449.7,0.0606506]
[1730651469692,9.054698,2449.8,2449.7,0.0606506]
[1730651469855,8.277098,2449.8,2449.7,0.0606506]
[1730651471388,5.277098,2449.8,2449.7,0.0606506]
[1730651471750,4.08196,2449.8,2449.7,0.0606506]
[1730651475053,7.08196,2449.8,2449.7,0.0606506]
[1730651475506,4.08246,2449.5,2449.4,0.002]
[1730651475814,7.08246,2449.5,2449.4,0.002]
[1730651476468,4.08246,2449.5,2449.4,0.002]
[1730651477811,4.5454849,2449.5,2449.4,0.002]
[1730651480070,7.5454849,2449.5,2449.4,0.002]
[1730651481604,8.3614849,2449.5,2449.4,0.002]
[1730651481783,8.3714849,2449.5,2449.4,0.002]
[1730651482277,8.3814849,2449.5,2449.4,0.002]
[1730651482910,8.3614849,2449.5,2449.4,0.002]
[1730651483617,4.5454849,2449.5,2449.4,0.002]
[1730651485027,4.08232,2449.6,2449.4,0.832]
[1730651485323,4.08201,2449.8,2449.4,0.832]
[1730651485324,4.08215,2449.7,2449.4,0.832]
[1730651485477,4.08173,2450.0,2449.4,0.832]
[1730651485677,4.08199,2449.8,2449.4,0.832]
[1730651486287,0.01,2450.5,2449.7,0.83]
[1730651486288,0.816,2450.5,2449.7,0.83]
[1730651486630,0.816,2450.5,2449.5,4.08246]
[1730651486631,4.08075,2450.6,2450.1,0.83]
[1730651487122,4.08075,2450.6,2450.2,4.08129]
[1730651487325,0.816,2451.0,2450.3,0.83]
[1730651487532,4.08081,2450.5,2450.3,0.83]
[1730651487681,4.08096,2450.4,2450.3,0.83]
[1730651487881,4.08081,2450.5,2450.3,0.83]
[1730651487882,8.16174,2450.5,2450.3,0.83]
[1730651488081,4.08081,2450.5,2450.3,0.83]
[1730651488276,7.610531,2450.9,2450.3,0.83]
[1730651488277,8.16122,2450.7,2450.3,0.83]
[1730651488509,4.08096,2450.4,2450.3,0.83]
[1730651488712,0.826,2451.0,2450.3,4.91112]
[1730651488713,4.89605,2451.0,2450.3,4.91112]
[1730651489041,4.08033,2450.8,2450.3,4.91112]
[1730651489321,0.40798,2451.1,2450.4,0.83]
[1730651489322,4.07989,2451.1,2450.4,0.83]
[1730651489622,4.07989,2451.1,2450.6,0.83]
[1730651489623,4.0798,2451.1,2450.6,0.83]
[1730651489998,4.08,2451.0,2450.6,0.83]
[1730651490227,4.89515,2451.5,2450.6,0.83]
[1730651490228,4.08014,2450.9,2450.6,0.83]
[1730651490745,8.15985,2451.1,2450.6,0.83]
[1730651491115,4.07991,2451.1,2450.6,4.91052]
[1730651491440,4.07991,2451.1,2450.6,0.83]
[1730651491964,0.407991,2451.1,2450.6,0.83]
[1730651492243,4.08026,2450.9,2450.6,0.83]
[1730651492443,4.08046,2450.7,2450.6,0.83]
[1730651492612,4.0803,2450.8,2450.6,0.83]
[1730651492812,4.08046,2450.7,2450.6,0.83]
[1730651493013,4.08098,2450.4,2450.2,0.7596]
[1730651493333,4.08113,2450.3,2449.8,0.7596]
[1730651493641,0.816076,2450.7,2449.8,0.7596]
[1730651493642,8.16317,2450.1,2449.8,0.7596]
[1730651493801,4.08158,2450.1,2449.8,0.7596]
[1730651494238,4.08133,2450.2,2449.8,0.7596]
[1730651494441,4.08119,2450.3,2449.8,4.84155]
[1730651494659,4.08097,2450.4,2449.9,4.08171]
[1730651495336,4.08097,2450.4,2449.8,5.375709]
[1730651495638,4.08124,2450.3,2449.8,5.375709]
[1730651496545,4.08097,2450.4,2449.8,5.375589]
[1730651496757,4.08113,2450.3,2449.8,5.375589]
[1730651497104,4.08113,2450.3,2449.8,1.293759]
[1730651497421,4.08113,2450.3,2449.8,5.375709]
[1730651497756,4.896606,2450.7,2450.0,4.08148]
[1730651497757,4.08073,2450.6,2450.0,4.08148]
[1730651497957,4.08079,2450.5,2450.1,0.7596]
[1730651498130,4.08063,2450.6,2450.1,0.7596]
[1730651498335,8.16083,2450.8,2450.2,4.08117]
[1730651498521,4.08041,2450.8,2450.2,0.90038358]
[1730651498719,4.08041,2450.8,2450.3,4.08104]
[1730651499531,8.16084,2450.8,2450.3,4.08104]
[1730651499851,4.08049,2450.7,2450.2,4.98158358]
[1730651500027,8.16085,2450.8,2450.3,4.08108]
[1730651500926,0.85092706,2451.1,2450.4,0.7596]
[1730651501126,4.07973,2451.2,2450.7,0.7596]
[1730651501326,4.07973,2451.2,2450.7,4.83998]
[1730651501637,4.07922,2451.5,2451.1,0.7596]
[1730651502037,4.07934,2451.4,2451.1,0.7596]
[1730651502326,4.07949,2451.3,2451.1,0.7596]
[1730651504120,4.07921,2451.5,2451.1,0.7596]
[1730651504523,4.07947,2451.3,2451.1,0.7596]
[1730651504729,8.15843,2451.5,2451.1,0.7596]
[1730651505260,4.07891,2451.7,2451.1,0.7596]
[1730651505478,0.92061926,2451.7,2451.1,0.7596]
[1730651505678,4.07923,2451.5,2451.1,0.7596]
[1730651506087,4.07958,2451.3,2451.1,0.7596]
[1730651506743,4.07948,2451.3,2451.1,0.7596]
[1730651507151,4.07948,2451.3,2450.4,4.10095]
[1730651507152,3.0,2451.3,2450.7,0.7596]
[1730651507393,4.08022,2450.9,2450.5,0.7596]
[1730651507679,8.16019,2451.0,2450.5,0.7596]
[1730651507881,4.08007,2451.0,2450.5,0.7596]
[1730651508249,4.08007,2451.0,2450.5,4.84037]
[1730651508841,4.08007,2451.0,2450.5,0.7596]
[1730651509048,4.08019,2450.9,2450.5,0.7596]
[1730651509279,4.52636788,2450.9,2450.5,0.7596]
[1730651510523,4.08019,2450.9,2450.5,0.7596]
[1730651510892,4.4615088,2451.1,2450.5,4.84039]
[1730651511087,4.07992,2451.1,2450.6,4.08061]
[1730651511606,7.07956,2451.3,2450.6,0.08160854]
[1730651511779,7.07956,2451.3,2450.7,0.8174]
[1730651511780,4.07956,2451.3,2450.7,0.8174]
[1730651511986,1.64762706,2451.5,2450.5,0.8174]
[1730651511987,4.08005,2451.0,2450.5,0.8174]
[1730651512295,4.08014,2450.9,2450.5,0.8174]
[1730651512480,4.08005,2451.0,2450.5,4.89818]
[1730651512682,8.16015,2451.0,2450.5,4.89818]
[1730651512898,4.08005,2451.0,2450.5,4.89818]
[1730651513329,4.08005,2451.0,2450.5,0.8174]
[1730651513630,4.896031,2451.0,2450.5,4.89816]
[1730651513930,4.08013,2450.9,2450.5,4.89816]
[1730651514284,4.896031,2451.0,2450.5,4.89816]
[1730651514517,4.896031,2451.0,2450.5,0.8174]
[1730651514702,4.08022,2450.9,2450.5,0.8174]
[1730651515300,4.08022,2450.9,2450.5,4.89818]
[1730651515835,4.07997,2451.0,2450.5,4.89818]
[1730651516488,4.08013,2450.9,2450.5,0.8174]
[1730651517952,4.0803,2450.8,2450.5,0.8174]
[1730651518305,4.08049,2450.7,2450.5,0.8174]
[1730651518624,4.08018,2450.9,2450.5,0.8174]
[1730651518997,4.91087,2451.3,2450.5,0.8174]
[1730651518998,0.8313,2451.3,2450.5,0.8174]
[1730651519344,4.08063,2450.6,2450.2,0.8174]
[1730651519490,4.08148,2450.1,2449.8,0.8174]
[1730651519690,4.08125,2450.3,2449.9,4.08178]
[1730651520090,4.08125,2450.3,2449.8,4.89935]
[1730651520324,4.08125,2450.3,2449.9,4.08174]
[1730651520731,4.08125,2450.3,2449.8,4.89925]
[1730651520900,4.08137,2450.2,2449.8,0.8174]
[1730651521232,4.08113,2450.3,2449.8,4.89927]
[1730651521591,4.08113,2450.3,2449.8,5.847414]
[1730651521828,4.08109,2450.4,2449.8,5.847414]
[1730651522030,8.16148,2450.6,2450.1,4.08138]
[1730651522328,4.08104,2450.4,2450.0,0.8174]
[1730651522688,4.896878,2450.6,2450.0,0.8174]
[1730651522892,4.896878,2450.6,2450.0,4.89889]
[1730651523130,4.08073,2450.6,2450.0,4.89889]
[1730651523326,4.08089,2450.5,2450.0,4.89889]
[1730651523689,0.8313,2450.8,2450.0,0.8174]
[1730651523890,4.08113,2450.3,2450.0,0.8174]
[1730651524487,0.8313,2450.3,2449.7,1.3174]
[1730651524716,4.08174,2450.0,2449.7,1.3174]
[1730651525233,4.08196,2449.8,2449.7,1.3174]
[1730651525390,4.08196,2449.8,2449.7,0.5]
[1730651525833,4.91326,2449.8,2449.7,0.5]
[1730651526493,4.08196,2449.8,2449.7,0.5]
[1730651527134,4.08196,2449.8,2449.7,1.3174]
[1730651527497,4.08177,2450.0,2449.7,1.3174]
[1730651527888,4.08159,2450.1,2449.7,1.3174]
[1730651528103,4.93215706,2450.3,2449.8,4.08182]
[1730651528416,4.08123,2450.3,2449.9,4.08175]
[1730651528730,4.08123,2450.3,2449.9,4.08179]
[1730651529442,0.85092706,2450.4,2450.1,4.08146]
[1730651529647,0.85092706,2450.5,2450.1,4.08146]
[1730651529850,0.85092706,2450.5,2450.1,4.979525]
[1730651530145,4.08097,2450.4,2450.1,0.898065]
[1730651530532,0.85092706,2450.4,2450.1,0.898065]
[1730651530737,9.01273706,2450.5,2450.1,0.898065]
[1730651531445,0.85092706,2450.4,2450.1,0.898065]
[1730651531777,0.85092706,2450.5,2450.2,4.08126]
[1730651531948,0.85092706,2450.6,2450.4,4.08095]
[1730651532132,0.85092706,2450.7,2450.4,4.08086]
[1730651532341,0.85092706,2450.8,2450.6,0.8174]
[1730651532714,0.85092706,2450.8,2450.6,4.89801]
[1730651532909,5.35639559,2451.0,2450.6,4.89801]
[1730651532910,0.85092706,2450.9,2450.6,4.89801]
[1730651533248,0.85092706,2450.9,2450.6,0.8174]
[1730651533451,4.08113,2450.3,2449.9,0.8174]
[1730651533754,4.08121,2450.3,2449.9,0.8174]
[1730651534624,0.85371684,2450.4,2450.0,4.08154]
[1730651534945,4.93469684,2450.4,2449.9,4.8991]
[1730651535151,4.93451684,2450.5,2450.0,4.08155]
[1730651535440,4.93468684,2450.4,2449.9,5.43895]
[1730651535608,0.85371684,2450.4,2450.0,4.08162]
[1730651535810,1.27635559,2450.5,2450.2,0.8174]
[1730651535811,0.85371684,2450.5,2450.2,0.8174]
[1730651536009,0.85371684,2450.6,2450.2,8.97979]
[1730651536267,0.85371684,2450.6,2450.3,0.897979]
[1730651536441,0.85371684,2450.7,2450.5,0.8174]
[1730651536639,0.85371684,2450.8,2450.5,0.8174]
[1730651537311,4.93405684,2450.8,2450.5,0.8174]
[1730651537817,4.08048,2450.7,2450.5,0.8174]
[1730651538013,0.85371684,2450.8,2450.5,0.8174]
[1730651538362,0.85371684,2450.8,2450.3,0.8273]
[1730651538363,1.6449235,2450.8,2450.3,0.8273]
[1730651538647,1.6449235,2450.8,2449.8,0.8273]
[1730651538648,4.08144,2450.2,2449.8,0.8273]
[1730651538833,4.08177,2450.0,2449.8,0.8273]
[1730651539046,4.08177,2450.0,2449.6,0.8273]
[1730651539047,4.08192,2449.9,2449.6,0.8273]
[1730651539347,4.08177,2450.0,2449.6,0.8273]
[1730651539550,4.08172,2450.0,2449.6,0.8273]
[1730651539951,4.08187,2449.9,2449.6,0.8273]
[1730651540651,4.08196,2449.8,2449.3,0.8273]
[1730651540860,4.08196,2449.8,2449.3,4.91007]
[1730651541547,4.08196,2449.8,2449.3,0.8273]
[1730651541752,4.08196,2449.8,2449.3,4.91008]
[1730651542530,4.08214,2449.7,2449.3,4.91008]
[1730651542729,4.08214,2449.7,2449.3,0.8273]
[1730651543849,4.08197,2449.8,2449.3,4.91008]
[1730651544035,4.08215,2449.7,2449.3,4.91008]
[1730651545415,4.08215,2449.7,2449.3,0.8273]
[1730651545648,4.08244,2449.6,2449.3,0.8273]
[1730651546154,4.08215,2449.7,2449.3,0.8273]
[1730651546335,0.98379567,2449.7,2449.1,0.8273]
[1730651546540,4.08273,2449.4,2449.1,0.8273]
[1730651546961,4.08243,2449.6,2449.1,4.91038]
[1730651546962,8.16488,2449.6,2449.1,4.91038]
[1730651547488,4.08255,2449.5,2449.1,0.8273]
[1730651548193,4.08214,2449.7,2449.1,1.40350641]
[1730651548395,4.08214,2449.7,2449.2,4.08288]
[1730651548893,4.08214,2449.7,2449.2,4.08287]
[1730651550093,4.0823,2449.6,2449.2,4.08287]
[1730651550405,4.08255,2449.5,2449.1,0.8273]
[1730651550609,4.08287,2449.3,2449.1,0.8273]
[1730651550971,4.0831,2449.2,2449.0,0.034947]
[1730651551321,4.08313,2449.1,2449.0,0.034947]
[1730651552227,5.69384684,2449.1,2449.0,0.034947]
[1730651552803,8.70384684,2449.1,2449.0,0.034947]
[1730651552975,7.84013,2449.1,2449.0,0.034947]
[1730651553186,10.56377751,2449.1,2449.0,0.034947]
[1730651553386,9.28429411,2449.1,2449.0,0.034947]
[1730651553686,10.98614824,2449.1,2449.0,0.034947]
[1730651553872,10.56312167,2449.1,2449.0,0.034947]
[1730651554231,10.56239459,2449.1,2449.0,0.034947]
[1730651554370,11.42713003,2449.1,2449.0,0.034947]
[1730651554572,9.29429411,2449.1,2449.0,0.034947]
[1730651555209,11.41336423,2449.1,2449.0,0.034947]
[1730651555419,10.57165389,2449.1,2449.0,0.034947]
[1730651556525,10.14542964,2449.1,2449.0,0.034947]
[1730651556683,10.14541105,2449.1,2449.0,0.034947]
[1730651557011,10.14539199,2449.1,2449.0,0.034947]
[1730651557220,7.13539199,2449.1,2449.0,0.034947]
[1730651557380,4.84013,2449.1,2449.0,0.034947]
[1730651558216,5.69122788,2449.1,2449.0,0.034947]
[1730651558385,8.70122788,2449.1,2449.0,7e-06]
[1730651558584,8.70122788,2449.1,2447.8,0.0612197]
[1730651558585,0.767,2448.8,2447.8,0.0612197]
[1730651558825,4.08499,2448.0,2447.8,0.0612197]
[1730651559030,8.1701,2448.0,2447.8,0.0612197]
[1730651559232,4.08513,2447.9,2447.8,0.8124197]
[1730651559384,3.757,2448.3,2447.8,0.8124197]
[1730651559585,4.08504,2448.0,2447.8,0.8124197]
[1730651560036,4.08513,2447.9,2447.8,0.8124197]
[1730651560332,4.08513,2447.9,2447.8,0.0612197]
[1730651560840,3.757,2448.3,2447.8,0.0612197]
[1730651560994,4.08513,2447.9,2447.8,0.0612197]